fUST/lending_fUST_20260606
["ID","MTS","AMOUNT","RATE_DAILY","PERIOD"]
[424268106,1780710639000,-692442.53797134,0.00023591,30]
[424268097,1780710639000,-152.0,0.00023568,30]
[424268095,1780710639000,-152.0,0.00023561,7]
[424268096,1780710639000,-227.59,0.00023565,7]
[424268100,1780710639000,-1782.27,0.00023581,3]
[424268103,1780710639000,-340.04,0.00023581,3]
[424268101,1780710639000,-1360.16,0.00023581,3]
[424268094,1780710639000,-922.52633463,0.00023553,120]
[424268093,1780710639000,-14981.57000981,0.00023553,120]
[424268099,1780710639000,-152.31,0.00023578,7]
[424268102,1780710639000,-680.08,0.00023581,3]
[424268104,1780710639000,-170.02,0.00023581,3]
[424268115,1780710640000,-6389.72923108,0.00023591,30]
[424268114,1780710640000,-10293.86166016,0.00023591,30]
[424268120,1780710643000,-382.16542922,0.00023591,30]
[424268119,1780710643000,-642.27118905,0.00023591,30]
[424268137,1780710646000,-22.51907658,0.00023591,30]
[424268136,1780710646000,-32064.67482336,0.00023591,30]
[424268149,1780710765000,240.65,0.00023288,120]
[424268152,1780710929000,333.31,0.00018842,120]
[424268156,1780711230000,233.32,0.00018842,120]
[424268158,1780711538000,544.41,0.00018842,120]
[424268159,1780711547000,-357.26982633,9.136e-05,2]
[424268161,1780711652000,-804.43150096,9.045e-05,2]
[424268163,1780711690000,1072.0,8.001e-05,2]
[424268193,1780711745000,-4096.52127664,9.045e-05,2]
[424268195,1780711745000,-300.0,9.506e-05,2]
[424268196,1780711745000,-241.34834872,9.506e-05,2]
[424268194,1780711745000,-5000.0,9.136e-05,2]
[424268197,1780711757000,-58.65165128,9.506e-05,2]
[424268199,1780711757000,-300.0,9.506e-05,2]
[424268201,1780711757000,-300.0,9.506e-05,2]
[424268200,1780711757000,-300.0,9.506e-05,2]
[424268202,1780711757000,-300.0,9.506e-05,2]
[424268203,1780711757000,-300.0,9.506e-05,2]
[424268205,1780711757000,-300.0,9.506e-05,2]
[424268206,1780711757000,-300.0,9.506e-05,2]
[424268198,1780711757000,-300.0,9.506e-05,2]
[424268204,1780711757000,-300.0,9.506e-05,2]
[424268209,1780711757000,-300.0,9.506e-05,2]
[424268210,1780711757000,-300.0,9.506e-05,2]
[424268211,1780711757000,-600.0,9.695e-05,2]
[424268212,1780711757000,-402.09084816,0.0001,2]
[424268208,1780711757000,-300.0,9.506e-05,2]
[424268207,1780711757000,-300.0,9.506e-05,2]
[424268213,1780711761000,-1900.29391924,0.0001,2]
[424268214,1780711761000,-633.40628568,0.00010665,2]
[424268284,1780711832000,-625.0,0.00010558,2]
[424268305,1780711838000,-300.0,0.00014476,2]
[424268301,1780711838000,-300.0,0.00014476,2]
[424268303,1780711838000,-300.0,0.00014476,2]
[424268306,1780711838000,-300.0,0.00014476,2]
[424268307,1780711838000,-300.0,0.00014476,2]
[424268308,1780711838000,-160.0,0.00015945,3]
[424268304,1780711838000,-300.0,0.00014476,2]
[424268311,1780711838000,-229.6665564,0.00017758,2]
[424268310,1780711838000,-203.82484021,0.00017758,2]
[424268315,1780711838000,-459.33311281,0.00018112,2]
[424268316,1780711838000,-182.49215224,0.00018112,2]
[424268318,1780711838000,-317.76706117,0.00018112,2]
[424268325,1780711838000,-500.0,0.00019052,2]
[424268309,1780711838000,-1946.52246423,0.00017637,2]
[424268302,1780711838000,-300.0,0.00014476,2]
[424268313,1780711838000,-220.46325741,0.00017935,2]
[424268312,1780711838000,-193.42966018,0.00017758,2]
[424268287,1780711838000,-325.80027339,0.00010558,2]
[424268288,1780711838000,-4049.19972661,0.00010558,2]
[424268289,1780711838000,-253.62975516,0.0001209,2]
[424268290,1780711838000,-207.3731011,0.00012738,2]
[424268295,1780711838000,-300.0,0.00014476,2]
[424268293,1780711838000,-300.0,0.00014476,2]
[424268319,1780711838000,-170.52517079,0.00018112,2]
[424268291,1780711838000,-1000.0,0.00013699,2]
[424268297,1780711838000,-300.0,0.00014476,2]
[424268294,1780711838000,-300.0,0.00014476,2]
[424268292,1780711838000,-1946.52246428,0.00014093,2]
[424268299,1780711838000,-300.0,0.00014476,2]
[424268296,1780711838000,-300.0,0.00014476,2]
[424268298,1780711838000,-300.0,0.00014476,2]
[424268300,1780711838000,-300.0,0.00014476,2]
[424268326,1780711838000,-500.0,0.00019052,2]
[424268314,1780711838000,-407.64968042,0.00018112,2]
[424268324,1780711838000,-500.0,0.00019052,2]
[424268342,1780711838000,-1052.0,0.00019052,2]
[424268344,1780711838000,-1052.0,0.00019052,2]
[424268343,1780711838000,-1052.0,0.00019052,2]
[424268346,1780711838000,-1052.0,0.00019052,2]
[424268345,1780711838000,-1052.0,0.00019052,2]
[424268352,1780711838000,-155.10670596,0.00019052,2]
[424268332,1780711838000,-1052.0,0.00019052,2]
[424268353,1780711838000,-156.51,0.00019178,2]
[424268354,1780711838000,-150.6725878,0.0001935,2]
[424268347,1780711838000,-1052.0,0.00019052,2]
[424268348,1780711838000,-1052.0,0.00019052,2]
[424268350,1780711838000,-1052.0,0.00019052,2]
[424268355,1780711838000,-327.599,0.0001935,2]
[424268317,1780711838000,-183.45157599,0.00018112,2]
[424268349,1780711838000,-1052.0,0.00019052,2]
[424268339,1780711838000,-1052.0,0.00019052,2]
[424268351,1780711838000,-1055.05136935,0.00019052,2]
[424268341,1780711838000,-1052.0,0.00019052,2]
[424268327,1780711838000,-329.94741154,0.00019052,2]
[424268334,1780711838000,-1052.0,0.00019052,2]
[424268321,1780711838000,-202.40735428,0.00018118,2]
[424268323,1780711838000,-156.51,0.00018904,2]
[424268320,1780711838000,-386.85932036,0.00018118,2]
[424268329,1780711838000,-1052.0,0.00019052,2]
[424268337,1780711838000,-1052.0,0.00019052,2]
[424268336,1780711838000,-1052.0,0.00019052,2]
[424268322,1780711838000,-156.51,0.0001863,2]
[424268328,1780711838000,-1052.0,0.00019052,2]
[424268330,1780711838000,-1052.0,0.00019052,2]
[424268331,1780711838000,-1052.0,0.00019052,2]
[424268338,1780711838000,-1052.0,0.00019052,2]
[424268333,1780711838000,-1052.0,0.00019052,2]
[424268340,1780711838000,-1052.0,0.00019052,2]
[424268335,1780711838000,-1052.0,0.00019052,2]
[424268409,1780711839000,-181.74541611,0.00023164,2]
[424268425,1780711839000,-1458.55202868,0.00023525,2]
[424268414,1780711839000,-190.07626375,0.00023391,2]
[424268416,1780711839000,-181.7454161,0.00023498,2]
[424268415,1780711839000,-108465.1119,0.00023444,2]
[424268408,1780711839000,-300.0,0.00023164,4]
[424268424,1780711839000,-864.0,0.00023513,10]
[424268407,1780711839000,-253.67576,0.00023126,14]
[424268411,1780711839000,-659.4774058,0.00023264,2]
[424268406,1780711839000,-415.0,0.00023014,7]
[424268403,1780711839000,-172.0,0.00022747,3]
[424268412,1780711839000,-300.0,0.00023264,2]
[424268404,1780711839000,-156.0,0.00022747,3]
[424268405,1780711839000,-160.0,0.00023,2]
[424268413,1780711839000,-333.52872415,0.00023276,2]
[424268398,1780711839000,-415.0,0.00022,2]
[424268419,1780711839000,-291.71040574,0.00023502,2]
[424268410,1780711839000,-32350.6045474,0.00023264,2]
[424268420,1780711839000,-525.07873032,0.00023502,2]
[424268439,1780711839000,-152.0,0.00023593,7]
[424268423,1780711839000,-320.10012564,0.00023502,2]
[424268438,1780711839000,-541.59,0.00023588,3]
[424268440,1780711839000,-401.14,0.00023596,7]
[424268441,1780711839000,-57117.15857843,0.00023598,30]
[424268433,1780711839000,-163.2357525,0.00023572,3]
[424268429,1780711839000,-1144.08218876,0.00023543,3]
[424268428,1780711839000,-2560.55325174,0.00023543,3]
[424268430,1780711839000,-500.0,0.00023553,9]
[424268432,1780711839000,-152.0,0.00023563,7]
[424268422,1780711839000,-1357.97521668,0.00023502,2]
[424268434,1780711839000,-1444.19,0.00023588,3]
[424268427,1780711839000,-152.0,0.0002353,7]
[424268426,1780711839000,-152.0,0.0002353,7]
[424268437,1780711839000,-180.52,0.00023588,3]
[424268436,1780711839000,-361.05,0.00023588,3]
[424268435,1780711839000,-722.09,0.00023588,3]
[424268417,1780711839000,-424.36725521,0.00023502,2]
[424268421,1780711839000,-933.47329835,0.00023502,2]
[424268418,1780711839000,-763.86105938,0.00023502,2]
[424268431,1780711839000,-152.0,0.00023559,30]
[424268401,1780711839000,-156.56,0.00022466,2]
[424268400,1780711839000,-415.0,0.00022192,7]
[424268396,1780711839000,-156.0,0.00021804,2]
[424268374,1780711839000,-156.51,0.00019726,2]
[424268372,1780711839000,-511.33495232,0.00019452,2]
[424268373,1780711839000,-156.51,0.00019452,2]
[424268370,1780711839000,-500.0,0.00019452,2]
[424268369,1780711839000,-500.0,0.00019452,2]
[424268375,1780711839000,-156.51,0.0002,2]
[424268368,1780711839000,-612.91347708,0.00019452,2]
[424268367,1780711839000,-500.0,0.00019452,2]
[424268366,1780711839000,-219.77131946,0.00019452,2]
[424268365,1780711839000,-500.0,0.00019452,2]
[424268363,1780711839000,-151.5,0.00019452,2]
[424268362,1780711839000,-500.0,0.00019452,2]
[424268361,1780711839000,-500.0,0.00019452,2]
[424268360,1780711839000,-151.5,0.00019452,2]
[424268359,1780711839000,-500.0,0.00019452,2]
[424268357,1780711839000,-200.0,0.00019399,3]
[424268358,1780711839000,-600.0,0.00019432,2]
[424268364,1780711839000,-612.90189185,0.00019452,2]
[424268356,1780711839000,-500.0,0.00019399,2]
[424268371,1780711839000,-500.0,0.00019452,2]
[424268377,1780711839000,-156.51,0.00020548,2]
[424268394,1780711839000,-166.0,0.00021804,2]
[424268390,1780711839000,-187.08783439,0.00021562,2]
[424268397,1780711839000,-156.51,0.00021918,2]
[424268393,1780711839000,-156.51,0.00021644,2]
[424268391,1780711839000,-2168.45494348,0.00021562,2]
[424268399,1780711839000,-156.51,0.00022192,2]
[424268395,1780711839000,-156.0,0.00021804,2]
[424268402,1780711839000,-343.2492448,0.00022498,2]
[424268387,1780711839000,-1845.432,0.00021562,2]
[424268383,1780711839000,-156.51,0.0002137,2]
[424268385,1780711839000,-150.93,0.00021562,2]
[424268392,1780711839000,-40.22005652,0.00021562,2]
[424268384,1780711839000,-720.0,0.00021375,10]
[424268388,1780711839000,-544.806,0.00021562,2]
[424268379,1780711839000,-185.0,0.00020886,2]
[424268378,1780711839000,-156.51,0.00020822,2]
[424268380,1780711839000,-1104.64765492,0.00020942,2]
[424268389,1780711839000,-3463.90116561,0.00021562,2]
[424268382,1780711839000,-1946.52246423,0.00021181,2]
[424268386,1780711839000,-250.0,0.00021562,2]
[424268381,1780711839000,-156.51,0.00021096,2]
[424268376,1780711839000,-156.51,0.00020274,2]
[424268453,1780711843000,-8609.54452486,0.00023598,30]
[424268452,1780711843000,-14887.39765306,0.00023598,30]
[424268480,1780711846000,-675.38508476,0.00023598,30]
[424268479,1780711846000,-6254.99999999,0.00023598,30]
[424268478,1780711846000,-13943.1565637,0.00023598,30]
[424268494,1780712529000,3232.91897352,7.6e-05,2]
[424268496,1780712590000,-9353.7630634,0.0001,2]
[424268503,1780712737000,-173.94479014,0.0001,2]
[424268505,1780712816000,-177.02209516,9.9e-05,2]
[424268506,1780712826000,-2402.06368024,9.801e-05,2]
[424268526,1780712947000,-2597.93631976,9.801e-05,2]
[424268548,1780712952000,-500.0,0.00010198,2]
[424268546,1780712952000,-500.0,0.00010198,2]
[424268547,1780712952000,-500.0,0.00010198,2]
[424268544,1780712952000,-397.89889391,0.00010198,2]
[424268543,1780712952000,-577.87639908,0.00010198,2]
[424268541,1780712952000,-500.0,0.00010198,2]
[424268542,1780712952000,-500.0,0.00010198,2]
[424268539,1780712952000,-500.0,0.00010198,2]
[424268540,1780712952000,-220.58461065,0.00010198,2]
[424268538,1780712952000,-500.0,0.00010198,2]
[424268537,1780712952000,-500.0,0.00010198,2]
[424268536,1780712952000,-500.0,0.00010198,2]
[424268534,1780712952000,-500.0,0.00010198,2]
[424268533,1780712952000,-500.0,0.00010198,2]
[424268532,1780712952000,-500.0,0.00010198,2]
[424268531,1780712952000,-192.83570801,0.00010198,2]
[424268529,1780712952000,-11483.14549635,0.0001,2]
[424268530,1780712952000,-155.70526643,0.00010198,2]
[424268528,1780712952000,-26.98425509,0.0001,2]
[424268527,1780712952000,-4822.97790484,9.9e-05,2]
[424268550,1780712952000,-500.0,0.00010198,2]
[424268535,1780712952000,-500.0,0.00010198,2]
[424268549,1780712952000,-500.0,0.00010198,2]
[424268545,1780712952000,-500.0,0.00010198,2]
[424268553,1780712952000,-500.0,0.00010198,2]
[424268571,1780712952000,-300.0,0.00010199,2]
[424268573,1780712952000,-300.0,0.00010199,2]
[424268574,1780712952000,-300.0,0.00010199,2]
[424268572,1780712952000,-300.0,0.00010199,2]
[424268570,1780712952000,-277.3684049,0.00010199,2]
[424268551,1780712952000,-500.0,0.00010198,2]
[424268568,1780712952000,-500.0,0.00010198,2]
[424268567,1780712952000,-500.0,0.00010198,2]
[424268566,1780712952000,-500.0,0.00010198,2]
[424268565,1780712952000,-500.0,0.00010198,2]
[424268563,1780712952000,-500.0,0.00010198,2]
[424268569,1780712952000,-500.0,0.00010198,2]
[424268564,1780712952000,-500.0,0.00010198,2]
[424268562,1780712952000,-500.0,0.00010198,2]
[424268561,1780712952000,-500.0,0.00010198,2]
[424268558,1780712952000,-500.0,0.00010198,2]
[424268559,1780712952000,-500.0,0.00010198,2]
[424268575,1780712952000,-300.0,0.00010199,2]
[424268557,1780712952000,-500.0,0.00010198,2]
[424268555,1780712952000,-500.0,0.00010198,2]
[424268556,1780712952000,-500.0,0.00010198,2]
[424268554,1780712952000,-500.0,0.00010198,2]
[424268560,1780712952000,-500.0,0.00010198,2]
[424268584,1780712953000,-300.0,0.00010199,2]
[424268582,1780712953000,-300.0,0.00010199,2]
[424268585,1780712953000,-300.0,0.00010199,2]
[424268583,1780712953000,-300.0,0.00010199,2]
[424268576,1780712953000,-300.0,0.00010199,2]
[424268580,1780712953000,-300.0,0.00010199,2]
[424268579,1780712953000,-300.0,0.00010199,2]
[424268578,1780712953000,-300.0,0.00010199,2]
[424268577,1780712953000,-300.0,0.00010199,2]
[424268581,1780712953000,-300.0,0.00010199,2]
[424268586,1780712953000,-600.0,0.00010199,2]
[424268588,1780712953000,-720.0,0.00011219,2]
[424268589,1780712953000,-1637.3926561,0.00011397,2]
[424268590,1780712953000,-573.74903953,0.00011499,2]
[424268591,1780712953000,-500.0,0.00011499,2]
[424268593,1780712953000,-277.67965075,0.00011499,2]
[424268595,1780712953000,-500.0,0.00011499,2]
[424268592,1780712953000,-500.0,0.00011499,2]
[424268594,1780712953000,-500.0,0.00011499,2]
[424268596,1780712953000,-500.0,0.00011499,2]
[424268597,1780712953000,-46806.83128875,0.000115,2]
[424268598,1780712953000,-7739.50482274,0.00012,2]
[424268587,1780712953000,-430.13335618,0.00010618,2]
[424268617,1780712974000,-4245.30729477,0.00012,2]
[424268616,1780712974000,-101732.51990523,0.00012,2]
[424268714,1780713032000,-600.0,0.00012239,2]
[424268712,1780713032000,-300.0,0.00012239,2]
[424268709,1780713032000,-300.0,0.00012239,2]
[424268707,1780713032000,-300.0,0.00012239,2]
[424268701,1780713032000,-300.0,0.00012239,2]
[424268699,1780713032000,-300.0,0.00012239,2]
[424268705,1780713032000,-300.0,0.00012239,2]
[424268697,1780713032000,-300.0,0.00012239,2]
[424268687,1780713032000,-300.0,0.00012239,2]
[424268695,1780713032000,-300.0,0.00012239,2]
[424268693,1780713032000,-300.0,0.00012239,2]
[424268689,1780713032000,-300.0,0.00012239,2]
[424268691,1780713032000,-300.0,0.00012239,2]
[424268685,1780713032000,-300.0,0.00012239,2]
[424268683,1780713032000,-5000.0,0.00012,2]
[424268681,1780713032000,-754.69270523,0.00012,2]
[424268711,1780713032000,-300.0,0.00012239,2]
[424268703,1780713032000,-300.0,0.00012239,2]
[424268716,1780713032000,-902.61,0.00012329,2]
[424268741,1780713032000,-659.8021452,0.00013699,2]
[424268728,1780713032000,-302.28,0.00012329,2]
[424268745,1780713032000,-1637.39265603,0.00015469,2]
[424268743,1780713032000,-864.0,0.00014809,2]
[424268756,1780713032000,-1843.24685729,0.00017,2]
[424268758,1780713032000,-6092.96306607,0.00017,2]
[424268737,1780713032000,-720.0,0.00013463,2]
[424268739,1780713032000,-2857.38014087,0.00013638,2]
[424268735,1780713032000,-874.69,0.00012329,2]
[424268754,1780713032000,-1427.37231873,0.00017,2]
[424268718,1780713032000,-752.18,0.00012329,2]
[424268751,1780713032000,-5904.95157587,0.00017,2]
[424268749,1780713032000,-1000.0,0.0001629,2]
[424268733,1780713032000,-174.93,0.00012329,2]
[424268732,1780713032000,-209.92,0.00012329,2]
[424268730,1780713032000,-251.9,0.00012329,2]
[424268720,1780713032000,-626.81,0.00012329,2]
[424268724,1780713032000,-435.29,0.00012329,2]
[424268722,1780713032000,-522.35,0.00012329,2]
[424268726,1780713032000,-362.74,0.00012329,2]
[424268747,1780713032000,-160.0,0.00015945,3]
[424269011,1780713040000,-2721.24019379,0.0001188,2]
[424269016,1780713040000,-462.097503,0.0001188,2]
[424269013,1780713040000,-359.99275684,0.0001188,2]
[424269012,1780713040000,-325.99178291,0.0001188,2]
[424269018,1780713041000,-308.3999989,0.0001188,2]
[424269029,1780713043000,-218.08663372,0.00019331,2]
[424269032,1780713043000,-1637.39265603,0.00019541,2]
[424269031,1780713043000,-262.079,0.00019351,2]
[424269030,1780713043000,-210.62633607,0.00019331,2]
[424269035,1780713043000,-3616.3835835,0.00020482,2]
[424269026,1780713043000,-152.0,0.00018485,2]
[424269037,1780713043000,-320.80332225,0.00021561,2]
[424269025,1780713043000,-244.0,0.00017919,2]
[424269024,1780713043000,-1000.0,0.00017919,2]
[424269022,1780713043000,-19.66912168,0.00017,2]
[424269023,1780713043000,-1858.02666733,0.00017,2]
[424269020,1780713043000,-722.27776456,0.0001188,2]
[424269021,1780713043000,-378.82453243,0.00017,2]
[424269027,1780713043000,-182.11575956,0.00019,30]
[424269036,1780713043000,-252.9956975,0.00020996,2]
[424269028,1780713043000,-300.0,0.00019178,2]
[424269033,1780713043000,-1000.0,0.00019711,2]
[424269034,1780713043000,-492.0,0.00019711,2]
[424269050,1780713043000,-1645.00191886,0.0002263,2]
[424269051,1780713043000,-109.75374671,0.00022646,3]
[424269045,1780713043000,-430.66536266,0.00022498,2]
[424269048,1780713043000,-4909.10306971,0.0002263,2]
[424269046,1780713043000,-180.6292017,0.0002263,2]
[424269047,1780713043000,-494.6080544,0.0002263,2]
[424269043,1780713043000,-365.0,0.00022192,7]
[424269042,1780713043000,-260.0,0.00022192,7]
[424269040,1780713043000,-260.0,0.00022,2]
[424269041,1780713043000,-365.0,0.00022,2]
[424269049,1780713043000,-381.96055923,0.0002263,2]
[424269038,1780713043000,-1000.0,0.00021682,10]
[424269039,1780713043000,-791.0,0.00021682,10]
[424269044,1780713043000,-185.0,0.00022325,2]
[424269074,1780713046000,-170.25790204,0.00022784,2]
[424269072,1780713046000,-1785.29183255,0.00021925,2]
[424269073,1780713046000,-45.42625329,0.00022646,3]
[424269080,1780713046000,-3521.05739125,0.00023273,2]
[424269071,1780713046000,-51.70816745,0.00021925,2]
[424269076,1780713046000,-231.92488302,0.00023014,7]
[424269075,1780713046000,-260.0,0.00023014,7]
[424269081,1780713046000,-785.30541686,0.0002337,2]
[424269079,1780713046000,-832.0,0.00023264,3]
[424269077,1780713046000,-133.07511698,0.00023014,7]
[424269078,1780713046000,-160.0,0.00023127,2]
[424269088,1780713305000,-234.43741635,9.703e-05,2]
[424269100,1780713662000,-1170.88555685,9.415e-05,2]
[424269106,1780713760000,15646.48136251,0.00023,120]
[424269125,1780713949000,-300.0,0.0002022,2]
[424269127,1780713949000,-300.0,0.0002022,2]
[424269124,1780713949000,-300.0,0.0002022,2]
[424269132,1780713949000,-300.0,0.0002022,2]
[424269128,1780713949000,-300.0,0.0002022,2]
[424269131,1780713949000,-300.0,0.0002022,2]
[424269122,1780713949000,-300.0,0.0002022,2]
[424269129,1780713949000,-300.0,0.0002022,2]
[424269126,1780713949000,-300.0,0.0002022,2]
[424269119,1780713949000,-333.02978475,0.000112,7]
[424269115,1780713949000,-333.02978474,0.0001,7]
[424269120,1780713949000,-675.2372561,0.00019825,2]
[424269121,1780713949000,-886.1854871,0.00019825,2]
[424269114,1780713949000,-5000.0,9.415e-05,2]
[424269116,1780713949000,-333.02978474,0.000102,7]
[424269117,1780713949000,-333.02978474,0.000105,7]
[424269118,1780713949000,-333.02978474,0.000108,7]
[424269113,1780713949000,-432.18453554,9.321e-05,2]
[424269112,1780713949000,-1623.72899447,9.228e-05,2]
[424269133,1780713949000,-300.0,0.0002022,2]
[424269123,1780713949000,-300.0,0.0002022,2]
[424269134,1780713949000,-300.0,0.0002022,2]
[424269130,1780713949000,-300.0,0.0002022,2]
[424269135,1780713949000,-300.0,0.0002022,2]
[424269157,1780713949000,-500.0,0.00021921,2]
[424269155,1780713949000,-500.0,0.00021921,2]
[424269153,1780713949000,-500.0,0.00021921,2]
[424269154,1780713949000,-577.87639908,0.00021921,2]
[424269152,1780713949000,-220.58461065,0.00021921,2]
[424269151,1780713949000,-500.0,0.00021921,2]
[424269150,1780713949000,-500.0,0.00021921,2]
[424269149,1780713949000,-500.0,0.00021921,2]
[424269147,1780713949000,-500.0,0.00021921,2]
[424269148,1780713949000,-500.0,0.00021921,2]
[424269136,1780713949000,-300.0,0.0002022,2]
[424269145,1780713949000,-500.0,0.00021921,2]
[424269146,1780713949000,-500.0,0.00021921,2]
[424269138,1780713949000,-600.0,0.00020623,2]
[424269142,1780713949000,-500.0,0.00021921,2]
[424269156,1780713949000,-500.0,0.00021921,2]
[424269137,1780713949000,-277.3684049,0.0002022,2]
[424269140,1780713949000,-500.0,0.00021921,2]
[424269141,1780713949000,-500.0,0.00021921,2]
[424269144,1780713949000,-155.70526643,0.00021921,2]
[424269139,1780713949000,-209.664,0.00021822,2]
[424269143,1780713949000,-192.83570801,0.00021921,2]
[424269167,1780713950000,-500.0,0.00021921,2]
[424269170,1780713950000,-500.0,0.00021921,2]
[424269168,1780713950000,-500.0,0.00021921,2]
[424269169,1780713950000,-500.0,0.00021921,2]
[424269166,1780713950000,-500.0,0.00021921,2]
[424269161,1780713950000,-500.0,0.00021921,2]
[424269158,1780713950000,-500.0,0.00021921,2]
[424269162,1780713950000,-500.0,0.00021921,2]
[424269165,1780713950000,-500.0,0.00021921,2]
[424269163,1780713950000,-500.0,0.00021921,2]
[424269160,1780713950000,-500.0,0.00021921,2]
[424269175,1780713950000,-500.0,0.00021921,2]
[424269159,1780713950000,-500.0,0.00021921,2]
[424269164,1780713950000,-500.0,0.00021921,2]
[424269172,1780713950000,-500.0,0.00021921,2]
[424269179,1780713950000,-2121.83627606,0.00021924,2]
[424269174,1780713950000,-500.0,0.00021921,2]
[424269184,1780713950000,-185.0,0.00022562,2]
[424269189,1780713950000,-51503.95013637,0.00023291,2]
[424269188,1780713950000,-1003.62,0.000232,7]
[424269186,1780713950000,-160.0,0.00023,2]
[424269187,1780713950000,-310.48261349,0.00023141,2]
[424269185,1780713950000,-720.0,0.00022686,10]
[424269183,1780713950000,-271.6722868,0.00021924,2]
[424269182,1780713950000,-2098.21460638,0.00021924,2]
[424269181,1780713950000,-4154.64030198,0.00021924,2]
[424269180,1780713950000,-3055.44423753,0.00021924,2]
[424269178,1780713950000,-500.0,0.00021921,2]
[424269177,1780713950000,-397.89889391,0.00021921,2]
[424269176,1780713950000,-500.0,0.00021921,2]
[424269173,1780713950000,-500.0,0.00021921,2]
[424269171,1780713950000,-500.0,0.00021921,2]
[424269191,1780714027000,-185.0,0.00022562,2]
[424269192,1780714027000,-5000.0,0.00023058,2]
[424269194,1780714027000,-1023.37041008,0.0002327,2]
[424269193,1780714027000,-160.0,0.00023058,2]
[424269195,1780714027000,-31152.55657331,0.00023291,2]
[424269196,1780714028000,-2204.72187688,0.00023291,2]
[424269260,1780714232000,-500.0,0.0002329,2]
[424269271,1780714232000,-500.0,0.0002329,2]
[424269253,1780714232000,-4168.99188704,0.00022827,2]
[424269262,1780714232000,-401.62432767,0.0002329,2]
[424269256,1780714232000,-831.00811296,0.00022827,2]
[424269267,1780714232000,-500.0,0.0002329,2]
[424269265,1780714232000,-341.98626656,0.0002329,2]
[424269273,1780714232000,-500.0,0.0002329,2]
[424269275,1780714232000,-12.43341745,0.00023291,2]
[424269269,1780714232000,-444.37575553,0.0002329,2]
[424269257,1780714232000,-544.21098821,0.0002329,2]
[424269263,1780714232000,-500.0,0.0002329,2]
[424269376,1780714238000,-358.67402666,0.00023291,2]
[424269375,1780714238000,-8044.23586405,0.00023291,2]
[424269374,1780714238000,-544.220022,0.00023291,2]
[424269373,1780714238000,-160.0,0.00023058,2]
[424269592,1780714243000,-287.41003066,0.00023291,2]
[424269594,1780714244000,-500.0,0.00023291,2]
[424269593,1780714244000,-31336.49219578,0.00023291,2]
[424269615,1780714246000,-19469.26379083,0.00023291,2]
[424269616,1780714246000,-10619.87322711,0.00023291,2]
[424269620,1780714247000,-5032.59835675,0.00023291,2]
[424269619,1780714247000,-11111.03099317,0.00023291,2]
[424269631,1780715155000,-357.26982633,0.00021456,2]
[424269634,1780715251000,-944.46053855,0.00021029,2]
[424269638,1780715354000,-182.26409064,0.00021029,2]
[424269637,1780715354000,-447.16167463,0.00020819,2]
[424269674,1780715432000,-623.13038628,0.00020611,2]
[424269718,1780715439000,-1972.05605047,0.00020611,2]
[424269717,1780715439000,-2404.81356325,0.00020611,2]
[424269719,1780715439000,-357.26982633,0.00020819,2]
[424269721,1780715439000,-391.0,0.00022,2]
[424269723,1780715439000,-391.0,0.00022192,7]
[424269722,1780715439000,-160.0,0.00022177,3]
[424269724,1780715439000,-500.0,0.00022336,2]
[424269720,1780715439000,-484.64395449,0.00021535,2]
[424269726,1780715439000,-226.80347652,0.00022409,2]
[424269730,1780715439000,-361.06302887,0.0002289,2]